bitfinex-derivatives/quotes_SOLF0:USTF0_20260126
["timestamp","ask_amount","ask_price","bid_price","bid_amount"]
[1769386648863,7.5396,119.51,119.43,69.94252322]
[1769386649066,53.18290296,119.51,119.43,69.94252322]
[1769386649962,60.72310296,119.5,119.43,69.94252322]
[1769386650970,60.72370296,119.49,119.43,69.94252322]
[1769386652170,60.72370296,119.49,119.41,69.94252322]
[1769386652873,60.72440296,119.48,119.41,69.94252322]
[1769386655669,63.00987381,119.48,119.41,72.22799407]
[1769386655870,2.28547085,119.47,119.41,72.22799407]
[1769386656280,55.35449601,119.47,119.41,72.22799407]
[1769386656479,55.35449601,119.47,119.41,69.94252322]
[1769386656977,2.28547085,119.46,119.41,69.94252322]
[1769386659577,60.61112516,119.47,119.41,69.94252322]
[1769386659976,53.06902516,119.42,119.35,68.64591583]
[1769386660275,53.06902516,119.39,119.34,26.17035386]
[1769386660474,60.61622516,119.39,119.34,13.47525386]
[1769386660877,53.06902516,119.37,119.29,68.64591583]
[1769386661078,53.06902516,119.35,119.26,68.64591583]
[1769386661278,170.51712516,119.34,119.26,68.64591583]
[1769386661476,53.06902516,119.33,119.23,327.21839516]
[1769386661773,53.06902516,119.32,119.24,68.64591583]
[1769386662177,53.06902516,119.34,119.24,68.64591583]
[1769386662480,53.06902516,119.34,119.25,68.64591583]
[1769386664676,53.06902516,119.32,119.23,327.21839516]
[1769386664869,53.06902516,119.32,119.24,68.64591583]
[1769386665179,170.51396728,119.29,119.21,68.64591583]
[1769386665380,53.06876232,119.29,119.21,68.64591583]
[1769386665880,53.01586728,119.29,119.21,68.64591583]
[1769386666582,0.05600745,119.26,119.21,68.64591583]
[1769386667575,58.26450808,119.31,119.21,68.64591583]
[1769386667776,58.26450808,119.31,119.23,68.64591583]
[1769386667976,53.01586728,119.31,119.23,68.64591583]
[1769386668168,122.0686408,119.33,119.23,68.64591583]
[1769386668169,116.82,119.33,119.23,68.64591583]
[1769386668368,53.07187473,119.33,119.23,68.64591583]
[1769386669380,53.07187473,119.31,119.23,68.64591583]
[1769386669881,53.07187473,119.31,119.2,5.2486408]
[1769386669882,53.07187473,119.29,119.2,68.64591583]
[1769386670470,65.87201553,119.32,119.2,193.78401583]
[1769386670679,53.07187473,119.32,119.22,68.64591583]
[1769386671184,53.07187473,119.31,119.22,68.64591583]
[1769386671782,53.07187473,119.3,119.22,68.64591583]
[1769386674284,53.07187473,119.33,119.23,68.64591583]
[1769386674473,122.6928408,119.35,119.16,30.3986408]
[1769386674474,276.99187473,119.36,119.24,191.43945663]
[1769386674683,276.99187473,119.36,119.25,68.69873742]
[1769386675184,0.05522257,119.31,119.25,68.64591583]
[1769386675374,0.05522257,119.31,119.29,0.06375376]
[1769386675579,0.05522257,119.31,119.25,68.64591583]
[1769386680278,60.55782097,119.35,119.25,68.64591583]
[1769386680878,60.61384354,119.34,119.25,68.64591583]
[1769386681383,53.06334354,119.32,119.21,12.81998987]
[1769386681584,53.06334354,119.31,119.22,68.64591583]
[1769386682283,60.61564354,119.31,119.22,68.64591583]
[1769386685490,60.84460063,119.3,119.22,68.64591583]
[1769386690496,137.5,119.31,119.22,68.64591583]
[1769386690705,60.84320063,119.32,119.22,68.64591583]
[1769386691697,53.29170063,119.3,119.22,68.64591583]
[1769386692705,7.5535,119.29,119.22,68.64591583]
[1769386697102,7.5541,119.28,119.22,68.64591583]
[1769386697296,60.85389466,119.28,119.22,68.64591583]
[1769386697501,60.85389466,119.28,119.2,71.81994911]
[1769386701614,55.59333617,119.27,119.2,74.11349062]
[1769386701812,2.29354151,119.26,119.2,71.81994911]
[1769386703019,2.29354151,119.28,119.22,71.81994911]
[1769386703219,63.14703617,119.29,119.22,74.11349062]
[1769386703515,60.85349466,119.29,119.22,71.81994911]
[1769386706017,136.68,119.31,119.22,71.81994911]
[1769386706319,7.5524,119.31,119.22,71.81994911]
[1769386706812,53.29979466,119.32,119.24,71.81994911]
[1769386707413,60.85129466,119.32,119.24,71.81994911]
[1769386707616,59.53712256,119.31,119.22,71.81994911]
[1769386707810,53.29979466,119.29,119.22,71.81994911]
[1769386708013,53.29979466,119.31,119.22,71.81994911]
[1769386708413,5.26420608,119.33,119.22,71.81994911]
[1769386708618,53.29979466,119.33,119.24,71.81994911]
[1769386709206,53.29979466,119.31,119.24,71.81994911]
[1769386710212,117.4693,119.32,119.21,79.37784911]
[1769386710213,53.29979466,119.29,119.21,79.37784911]
[1769386712019,7.5528,119.3,119.21,79.37784911]
[1769386712315,53.29979466,119.31,119.23,71.81994911]
[1769386712911,7.5518,119.32,119.23,79.37674911]
[1769386714223,60.77325809,119.38,119.29,71.50270505]
[1769386716018,60.77325809,119.37,119.29,71.50270505]
[1769386716525,60.77325809,119.35,119.26,71.50270505]
[1769386719817,185.73515809,119.38,119.29,71.50270505]
[1769386720211,68.32105809,119.38,119.29,71.50270505]
[1769386720414,60.77325809,119.38,119.29,71.50270505]
[1769386723018,68.32115809,119.38,119.29,71.50270505]
[1769386724515,60.77325809,119.38,119.2,40.2677]
[1769386724721,60.77325809,119.35,119.28,71.50270505]
[1769386725226,68.32305809,119.35,119.28,71.50270505]
[1769386727815,60.77325809,119.35,119.28,71.50270505]
[1769386728621,7.5486,119.37,119.28,71.50270505]
[1769386730025,60.77325809,119.38,119.28,79.05630505]
[1769386730423,60.77325809,119.38,119.3,71.50270505]
[1769386733534,68.32105809,119.38,119.3,71.50270505]
[1769386734231,60.77325809,119.38,119.3,71.50270505]
[1769386734627,60.77325809,119.41,119.32,71.50270505]
[1769386734931,7.5455,119.42,119.32,71.50270505]
[1769386735721,7.5455,119.42,119.34,71.50270505]
[1769386739737,60.77325809,119.43,119.34,71.50270505]
[1769386740836,68.31785809,119.43,119.34,71.50270505]
[1769386741037,68.31785809,119.43,119.34,79.05260505]
[1769386741734,60.77325809,119.41,119.34,71.50270505]
[1769386743136,451.8504,119.44,119.34,71.50270505]
[1769386743336,60.75781022,119.43,119.34,71.50270505]
[1769386744537,292.2803,119.51,119.35,76.2017794]
[1769386744538,60.75781022,119.45,119.35,76.2017794]
[1769386744737,60.75781022,119.47,119.36,70.95018393]
[1769386745542,63.04420065,119.46,119.38,73.23657436]
[1769386745935,70.58720065,119.46,119.38,73.23657436]
[1769386746338,63.04420065,119.45,119.38,70.95018393]
[1769386746538,0.05829829,119.43,119.38,70.95018393]
[1769386751147,126.3,119.48,119.38,76.20077543]
[1769386751547,126.3,119.48,119.4,70.95018393]
[1769386752439,68.35580851,119.51,119.41,70.95018393]
[1769386753639,68.35580851,119.51,119.41,78.49568393]
[1769386758451,68.35580851,119.51,119.43,72.14944396]
[1769386761445,68.31936424,119.53,119.43,79.69364396]
[1769386761654,68.31936424,119.53,119.43,72.14944396]
[1769386763147,68.31996424,119.52,119.43,72.14944396]
[1769386765153,68.31996424,119.52,119.43,79.69334396]
[1769386767659,68.32056424,119.51,119.43,79.69334396]
[1769386768048,60.78096424,119.51,119.43,72.14944396]
[1769386768356,117.2731,119.52,119.43,72.14944396]
[1769386768357,60.78096424,119.49,119.43,72.14944396]
[1769386768562,60.78096424,119.49,119.41,79.69474396]
[1769386768748,60.78096424,119.49,119.41,72.14944396]
[1769386769458,68.32246424,119.48,119.41,72.14944396]
[1769386769660,63.06676219,119.47,119.41,72.14944396]
[1769386771262,63.06676219,119.46,119.39,74.43524191]
[1769386771462,2.28579795,119.45,119.39,72.14944396]
[1769386771655,60.78096424,119.46,119.39,72.14944396]
[1769386772964,68.32366424,119.46,119.39,72.14944396]
[1769386773464,68.33821534,119.48,119.39,72.14944396]
[1769386773966,60.79651534,119.48,119.39,79.69614396]
[1769386774365,60.79651534,119.48,119.39,84.94553364]
[1769386776257,68.33801534,119.48,119.39,72.14944396]
[1769386776865,60.79651534,119.46,119.39,72.14944396]
[1769386777464,68.33921534,119.46,119.39,72.14944396]
[1769386780867,7.5416,119.48,119.39,72.14944396]
[1769386781066,60.79651534,119.48,119.39,72.14944396]
[1769386781264,60.79651534,119.48,119.41,66.89728829]
[1769386782181,60.79651534,119.5,119.41,66.89728829]
[1769386782365,60.79651534,119.5,119.41,74.44278829]
[1769386784974,68.33671534,119.5,119.41,74.44278829]
[1769386785484,60.79651534,119.5,119.43,66.89728829]
[1769386787586,60.79651534,119.52,119.43,74.44148829]
[1769386789380,60.79651534,119.52,119.45,66.89728829]
[1769386790386,334.14,119.54,119.45,66.89728829]
[1769386790387,394.93651534,119.54,119.45,66.89728829]
[1769386791582,402.47421534,119.54,119.45,66.89728829]
[1769386793285,402.47421534,119.54,119.45,74.44008829]
[1769386793492,394.93651534,119.54,119.45,74.44008829]
[1769386793681,397.21952609,119.54,119.47,69.18029904]
[1769386793984,60.79651534,119.53,119.47,69.18029904]
[1769386796787,63.07952609,119.53,119.47,66.89728829]
[1769386797585,63.07995112,119.53,119.47,66.89728829]
[1769386798494,63.07995112,119.51,119.44,69.18072407]
[1769386800594,60.79651534,119.51,119.45,69.18072407]
[1769386802297,68.33501534,119.53,119.45,69.18072407]
[1769386802596,70.61845112,119.53,119.46,69.18072407]
[1769386803400,60.79651534,119.53,119.48,70.92789915]
[1769386803591,334.14,119.54,119.48,70.92789915]
[1769386803792,70.51556862,119.57,119.5,70.92789915]
[1769386803992,397.01956862,119.59,119.52,70.92789915]
[1769386804594,404.55416862,119.59,119.52,70.92789915]
[1769386805092,394.73613284,119.59,119.52,70.92789915]
[1769386805296,394.73613284,119.59,119.53,2.28343578]
[1769386806100,70.51176862,119.63,119.56,70.92789915]
[1769386806392,62.97956862,119.63,119.56,70.92789915]
[1769386806797,39.19225386,119.64,119.58,2.28343578]
[1769386806986,39.19225386,119.64,119.58,70.92789915]
[1769386808500,39.19225386,119.64,119.59,70.92789915]
[1769386809699,39.19225386,119.64,119.59,68.64446337]
[1769386811597,99.8883867,119.64,119.57,68.64446337]
[1769386811903,39.19225386,119.64,119.57,68.64446337]
[1769386813602,99.8883867,119.64,119.57,68.64446337]
[1769386815200,60.69613284,119.63,119.57,68.64446337]
[1769386815599,60.69613284,119.63,119.55,68.64446337]
[1769386817593,39.19225386,119.64,119.55,76.18096337]
[1769386817996,39.19225386,119.64,119.57,66.44873391]
[1769386818203,39.19225386,119.64,119.58,66.44873391]
[1769386819289,219.14,119.69,119.59,66.44873391]
[1769386819490,68.66458436,119.72,119.63,66.44873391]
[1769386819902,68.66458436,119.72,119.64,66.44873391]
[1769386820102,325.70958436,119.74,119.64,71.67996069]
[1769386820292,325.70958436,119.74,119.64,188.83216069]
[1769386820493,325.70958436,119.74,119.65,66.44873391]
[1769386823307,318.18458436,119.74,119.65,73.97903391]
[1769386824104,318.18458436,119.74,119.66,7.5297]
[1769386824308,318.18458436,119.74,119.67,66.44873391]
[1769386825006,68.66458436,119.73,119.65,66.44873391]
[1769386825202,68.66458436,119.73,119.65,183.59103391]
[1769386825506,68.66458436,119.73,119.6,166.84]
[1769386825507,68.66458436,119.75,119.67,66.44873391]
[1769386827004,68.66458436,119.75,119.67,73.97773391]
[1769386827406,76.18788436,119.77,119.67,73.97773391]
[1769386831413,333.64,119.78,119.69,66.44873391]
[1769386831605,402.30458436,119.78,119.69,66.44873391]
[1769386832404,402.30458436,119.78,119.71,66.44873391]
[1769386833012,68.66458436,119.8,119.71,66.44873391]
[1769386833306,69.89089077,119.79,119.71,66.44873391]
[1769386833714,77.41289077,119.79,119.71,66.44873391]
[1769386835511,69.89089077,119.79,119.71,66.44873391]
[1769386835715,69.89089077,119.79,119.71,73.97523391]
[1769386835910,69.89089077,119.79,119.71,66.44873391]
[1769386836108,69.89089077,119.75,119.67,70.90141941]
[1769386838621,69.89089077,119.77,119.69,70.90141941]
[1769386838816,69.89089077,119.77,119.69,20.76532523]
[1769386840413,77.41409077,119.77,119.69,20.76532523]
[1769386841215,77.41409077,119.77,119.65,122.36692678]
[1769386841216,69.89089077,119.75,119.67,7.5291]
[1769386841416,69.89089077,119.75,119.66,70.90141941]
[1769386843016,77.41539077,119.75,119.66,70.90141941]
[1769386843217,69.89089077,119.75,119.66,70.90141941]
[1769386844825,77.41529077,119.75,119.67,70.90141941]
[1769386848118,69.89089077,119.75,119.67,70.90141941]
[1769386851126,69.89089077,119.75,119.65,70.90141941]
[1769386851521,69.89089077,119.73,119.65,70.90141941]
[1769386852826,77.41659077,119.73,119.65,70.90141941]
[1769386853126,69.89089077,119.73,119.65,70.90141941]
[1769386853525,2.27671361,119.71,119.65,70.90141941]
[1769386855022,2.27671361,119.71,119.64,2.27671361]
[1769386855023,2.27671361,119.69,119.62,73.17813302]
[1769386855224,72.16760438,119.69,119.62,73.17813302]
[1769386855720,72.16760438,119.69,119.62,70.90141941]
[1769386855921,72.16760438,119.68,119.62,70.90141941]
[1769386856223,2.27671361,119.67,119.62,70.90141941]
[1769386856723,2.27671361,119.69,119.62,73.17813302]
[1769386857026,72.16760438,119.7,119.63,73.17813302]
[1769386857221,72.16760438,119.7,119.63,70.90141941]
[1769386857428,2.27671361,119.69,119.63,70.90141941]
[1769386859533,2.27716232,119.69,119.63,70.90141941]
[1769386861129,69.89089077,119.7,119.63,70.90141941]
[1769386861335,2.27716232,119.71,119.65,70.90141941]
[1769386861536,69.89089077,119.72,119.65,73.17858173]
[1769386861736,72.16805309,119.72,119.65,73.17858173]
[1769386863535,73.13621842,119.74,119.65,73.17858173]
[1769386863741,2.27716232,119.73,119.67,67.70736791]
[1769386863938,67.88828074,119.71,119.65,67.70736791]
[1769386866031,67.88828074,119.69,119.63,67.70736791]
[1769386866238,2.27716232,119.68,119.63,67.70736791]
[1769386866531,67.88828074,119.69,119.63,67.70736791]
[1769386867333,2.27716232,119.68,119.63,67.70736791]
[1769386867534,65.61111842,119.71,119.63,69.98453023]
[1769386867740,67.88828074,119.71,119.64,69.98453023]
[1769386868041,65.61111842,119.71,119.65,2.27716232]
[1769386868234,65.61111842,119.71,119.64,69.98453023]
[1769386868434,67.88828074,119.71,119.64,69.98453023]
[1769386869637,2.27716232,119.7,119.64,67.70736791]
[1769386870236,65.61111842,119.71,119.62,75.23956791]
[1769386870237,67.88828074,119.69,119.62,75.23956791]
[1769386871736,67.88828074,119.69,119.62,77.51673023]
[1769386871937,2.27716232,119.68,119.62,67.70736791]
[1769386874345,7.5276,119.7,119.63,69.98453023]
[1769386874649,67.88828074,119.7,119.63,69.98453023]
[1769386875244,2.27716232,119.69,119.63,67.70736791]
[1769386875446,67.88828074,119.69,119.63,67.70736791]
[1769386875645,2.27716232,119.68,119.63,67.70736791]
[1769386876144,73.71258565,119.68,119.6,70.25807703]
[1769386876343,2.27716232,119.66,119.6,70.25807703]
[1769386876650,73.71258565,119.67,119.6,72.53523935]
[1769386877552,71.43542333,119.67,119.6,70.25807703]
[1769386878453,78.96492333,119.67,119.6,70.25807703]
[1769386880653,71.43542333,119.65,119.58,70.25807703]
[1769386882955,78.96622333,119.65,119.58,70.25807703]
[1769386883462,71.43542333,119.65,119.58,70.25807703]
[1769386884463,71.43542333,119.63,119.56,70.25807703]
[1769386885061,78.96732333,119.63,119.56,70.25807703]
[1769386885556,78.96732333,119.63,119.58,0.05364244]
[1769386888163,78.96732333,119.63,119.54,70.25807703]
[1769386888361,71.43542333,119.61,119.54,70.25807703]
[1769386889556,0.06195525,119.59,119.54,70.25807703]
[1769386891761,71.49737858,119.59,119.51,70.25807703]
[1769386892268,71.43542333,119.59,119.51,70.25807703]
[1769386892656,0.06397411,119.56,119.51,70.25807703]
[1769386897172,68.38437917,119.6,119.51,77.79717703]
[1769386897375,68.38437917,119.6,119.53,67.37704439]
[1769386899678,70.66539671,119.6,119.53,69.65806193]
[1769386900682,68.38437917,119.6,119.54,2.28101754]
[1769386900983,68.38437917,119.6,119.54,69.65806193]
[1769386901377,124.6968,119.63,119.52,7.5385]
[1769386901378,68.38437917,119.62,119.56,2.28101754]
[1769386901582,68.38437917,119.62,119.56,69.65806193]
[1769386901883,75.91577917,119.64,119.57,69.65806193]
[1769386902183,78.19679671,119.64,119.57,69.65806193]
[1769386902875,70.66539671,119.63,119.57,69.65806193]
[1769386903382,70.66539671,119.63,119.57,67.37704439]
[1769386903586,68.38437917,119.65,119.58,2.28101754]
[1769386903879,70.66539671,119.65,119.58,2.28101754]
[1769386904085,70.66539671,119.64,119.57,69.65806193]
[1769386904477,70.66539671,119.63,119.57,67.37704439]
[1769386905980,68.38437917,119.63,119.57,69.65806193]
[1769386906592,0.05780601,119.61,119.59,0.06092777]
[1769386907689,70.72320272,119.61,119.54,69.65806193]
[1769386907888,2.28101754,119.6,119.54,67.37704439]
[1769386908084,70.66539671,119.6,119.54,67.37704439]
[1769386909088,0.06413188,119.58,119.54,67.37704439]
[1769386909985,0.06413188,119.58,119.52,69.65806193]
[1769386910289,70.72952859,119.58,119.52,67.37704439]
[1769386910483,70.66539671,119.58,119.52,67.37704439]
[1769386910884,0.06123531,119.56,119.52,67.37704439]
[1769386912491,0.06123531,119.56,119.52,69.65806193]
[1769386913480,0.06123531,119.56,119.52,67.37704439]
[1769386914496,0.06123531,119.56,119.52,69.65806193]
[1769386914695,0.06123531,119.56,119.53,2.28101754]
[1769386915294,0.06123531,119.56,119.52,67.37704439]
[1769386916099,0.06123531,119.56,119.52,69.65806193]
[1769386916297,0.06123531,119.56,119.53,2.28101754]
[1769386916993,0.06123531,119.56,119.52,69.65806193]
[1769386917199,0.06123531,119.56,119.52,67.37704439]
[1769386917399,0.06123531,119.56,119.52,69.65806193]
[1769386917802,68.44561448,119.56,119.5,67.37704439]
[1769386917995,70.72663202,119.56,119.5,67.37704439]
[1769386918194,70.72663202,119.56,119.5,69.65806193]
[1769386918699,68.44561448,119.56,119.5,69.65806193]
[1769386919700,68.44561448,119.56,119.5,67.37704439]
[1769386920699,68.44561448,119.56,119.5,69.65806193]
[1769386920905,68.44561448,119.56,119.5,67.37704439]
[1769386921104,68.44561448,119.56,119.5,69.65806193]
[1769386921701,68.44561448,119.56,119.5,69.65931656]
[1769386922202,68.44561448,119.56,119.51,69.65931656]
[1769386922408,0.06123531,119.56,119.52,2.28227217]
[1769386923203,0.06123531,119.56,119.52,74.58328894]
[1769386923419,0.06123531,119.56,119.53,74.58328894]
[1769386924013,80.16467852,119.59,119.53,72.30101677]
[1769386924312,0.06229359,119.56,119.53,72.30101677]
[1769386925518,70.34770635,119.59,119.53,72.30101677]
[1769386925715,318.64347852,119.61,119.53,74.58328894]
[1769386926020,7.532,119.63,119.56,74.58328894]
[1769386926223,77.87970635,119.63,119.56,74.58328894]
[1769386926820,70.34770635,119.63,119.58,2.33502898]
[1769386927020,343.65317217,119.65,119.58,2.33502898]
[1769386927228,414.00087852,119.65,119.58,74.63604575]
[1769386927425,411.71860635,119.65,119.59,2.28227217]
[1769386927725,411.71860635,119.65,119.59,74.58328894]
[1769386928116,404.18770635,119.65,119.6,2.28227217]
[1769386928316,404.18770635,119.65,119.61,0.05781292]
[1769386929628,80.15967852,119.67,119.61,0.05781292]
[1769386930826,70.34770635,119.64,119.57,72.30101677]
[1769386931018,70.34770635,119.64,119.57,74.58328894]
[1769386931219,70.34770635,119.64,119.58,2.28227217]
[1769386932230,0.05595076,119.62,119.58,2.28227217]
[1769386934125,0.05595076,119.62,119.57,74.58328894]
[1769386936324,0.05595076,119.62,119.57,72.30101677]
[1769386939632,69.7769703,119.62,119.55,2.28227217]
[1769386939824,77.3096703,119.62,119.55,2.28227217]
[1769386940331,77.25371954,119.62,119.55,67.92246562]
[1769386940531,0.05831814,119.6,119.55,67.92246562]
[1769386942428,0.05831814,119.6,119.57,65.64019345]
[1769386942634,0.05831814,119.6,119.57,67.92246562]
[1769386943027,77.25371954,119.62,119.55,67.92246562]
[1769386943435,0.05990375,119.6,119.55,67.92246562]
[1769386945336,0.05990375,119.6,119.57,65.64019345]
[1769386945530,0.05990375,119.6,119.57,67.92246562]
[1769386945728,77.25261954,119.64,119.5,225.98]
[1769386945729,67.43874737,119.64,119.58,67.92246562]
[1769386946328,67.43874737,119.64,119.59,67.92246562]
[1769386946934,7.5307,119.65,119.6,67.92246562]
[1769386947124,7.5307,119.65,119.6,67.97579432]
[1769386947636,74.96944737,119.65,119.6,0.0533287]
[1769386947824,77.25171954,119.65,119.6,0.0533287]
[1769386949139,77.25241954,119.64,119.6,0.0533287]
[1769386949439,77.25241954,119.64,119.58,65.64019345]
[1769386949638,77.30860538,119.64,119.58,65.64019345]
[1769386951834,69.72101954,119.62,119.56,65.64019345]
[1769386952230,67.43874737,119.62,119.56,67.92246562]
[1769386952830,0.06207295,119.6,119.56,67.92246562]
[1769386953036,0.06207295,119.6,119.56,65.64019345]
[1769386956735,0.06207295,119.6,119.55,2.28227217]
[1769386958439,7.59597295,119.6,119.55,2.28227217]
[1769386959436,76.22942147,119.6,119.54,70.19926888]
[1769386959828,68.63344852,119.59,119.52,70.19926888]
[1769386960028,68.63344852,119.57,119.49,2.28227217]
[1769386960238,70.91572069,119.54,119.47,70.19926888]
[1769386960537,184.06207295,119.6,119.44,72.48154105]
[1769386960538,68.63344852,119.5,119.44,72.48154105]
[1769386960740,68.63344852,119.49,119.42,72.48154105]
[1769386961238,68.63344852,119.49,119.44,2.28227217]
[1769386961443,68.63344852,119.52,119.47,2.28227217]
[1769386961639,68.63344852,119.52,119.45,70.19926888]
[1769386961640,68.63344852,119.52,119.46,2.28227217]
[1769386962035,0.05907665,119.51,119.45,72.48154105]
[1769386963136,68.63344852,119.49,119.41,70.19926888]
[1769386963340,68.63344852,119.49,119.42,2.28227217]
[1769386963541,68.63344852,119.49,119.42,72.48154105]
[1769386963742,76.17444852,119.49,119.42,72.48154105]
[1769386963938,0.05917805,119.47,119.44,2.28227217]
[1769386964243,68.63344852,119.51,119.45,2.28227217]
[1769386964444,76.17304852,119.51,119.45,2.28227217]
[1769386965040,76.17304852,119.51,119.43,70.19926888]
[1769386965344,76.17304852,119.51,119.47,0.05670821]
[1769386966041,76.17384852,119.5,119.43,72.48154105]
[1769386966243,76.23025385,119.5,119.43,72.48154105]
[1769386967646,76.23025385,119.5,119.43,70.19926888]
[1769386967844,76.23025385,119.5,119.43,72.48154105]
[1769386968043,76.23025385,119.5,119.44,2.28227217]
[1769386969248,76.23025385,119.5,119.43,70.19926888]
[1769386969437,76.23025385,119.5,119.44,2.28227217]
[1769386969638,68.68985385,119.5,119.44,72.48154105]
[1769386970139,0.05640533,119.5,119.45,2.28227217]
[1769386970335,0.05640533,119.5,119.47,2.28227217]
[1769386970541,0.05640533,119.5,119.46,70.19926888]
[1769386970741,68.63344852,119.52,119.46,72.48154105]
[1769386971145,0.0632806,119.49,119.46,72.48154105]
[1769386973348,0.0632806,119.49,119.46,70.19926888]
[1769386973851,0.0632806,119.49,119.46,72.48154105]
[1769386974150,0.0632806,119.49,119.44,72.48154105]
[1769386974447,68.69672912,119.49,119.44,2.28227217]
[1769386974646,68.63344852,119.49,119.44,2.28227217]
[1769386975045,0.06326648,119.48,119.44,2.28227217]
[1769386975448,0.06326648,119.48,119.42,70.19926888]
[1769386975645,0.06326648,119.48,119.44,2.28227217]
[1769386977049,0.06326648,119.48,119.45,2.28227217]
[1769386977451,68.63344852,119.52,119.46,2.28227217]
[1769386977949,68.63344852,119.52,119.47,2.28227217]
[1769386978944,68.63344852,119.52,119.48,0.05609825]
[1769386979452,76.17244852,119.52,119.48,0.05609825]
[1769386980541,68.63344852,119.52,119.48,0.05609825]
[1769386981453,68.63344852,119.51,119.46,2.28227217]
[1769386981654,68.69591807,119.51,119.46,2.28227217]
[1769386981855,68.69591807,119.51,119.44,2.28227217]
[1769386982357,68.63344852,119.51,119.44,2.28227217]
[1769386982559,76.17374852,119.5,119.44,2.28227217]
[1769386982755,0.06033858,119.49,119.44,2.28227217]
[1769386983256,76.2346871,119.49,119.43,2.28227217]
[1769386983458,76.2346871,119.49,119.42,2.28227217]
[1769386983653,76.2346871,119.49,119.42,2.28540306]
[1769386984045,76.17434852,119.49,119.42,2.28540306]
[1769386984457,0.05323882,119.47,119.42,2.28540306]
[1769386987158,0.05323882,119.47,119.42,70.58820399]
[1769386987349,0.05323882,119.47,119.43,2.28540306]
[1769386987556,0.05323882,119.47,119.44,2.28540306]
[1769386987754,0.05323882,119.47,119.43,2.28540306]
[1769386988152,0.05323882,119.47,119.42,70.58820399]
[1769386988453,0.05323882,119.47,119.43,2.28540306]
[1769386989061,0.05323882,119.47,119.43,70.58820399]
[1769386989268,0.05323882,119.47,119.44,2.28540306]
[1769386989562,0.05323882,119.47,119.43,70.58820399]
[1769386990554,0.05323882,119.47,119.44,2.28540306]
[1769386991456,0.05323882,119.47,119.43,70.58820399]
[1769386991655,66.09381052,119.47,119.42,2.28540306]
[1769386992054,66.0405717,119.47,119.39,68.30280093]
[1769386992259,68.32597476,119.47,119.4,2.28540306]
[1769386992663,73.64517875,119.46,119.4,2.28540306]
[1769386993055,73.64517875,119.46,119.39,70.58820399]
[1769386993668,73.64517875,119.46,119.39,68.30280093]
[1769386993669,73.5838717,119.45,119.39,68.30280093]
[1769386993866,73.5838717,119.45,119.38,2.28540306]
[1769386994267,73.5838717,119.45,119.38,70.58820399]
[1769386994576,0.05871062,119.43,119.38,70.58820399]
[1769386994752,66.09928232,119.43,119.37,2.28540306]
[1769386995259,66.0405717,119.43,119.37,2.28540306]
[1769386995657,0.06187077,119.41,119.37,2.28540306]
[1769386996059,0.06187077,119.41,119.36,70.58820399]
[1769386997167,0.06187077,119.41,119.36,68.30280093]
[1769386997466,0.06187077,119.41,119.36,70.58820399]
[1769386997654,9.82960306,119.44,119.38,70.48172509]
[1769386998068,77.35410907,119.44,119.38,70.48172509]
[1769386999069,69.80990907,119.42,119.35,72.76712815]
[1769386999269,69.80990907,119.42,119.35,70.48172509]
[1769386999572,69.8634188,119.42,119.35,70.48172509]
[1769387000164,77.4086188,119.42,119.35,72.76712815]
[1769387000763,75.12321574,119.42,119.36,72.76712815]
[1769387001163,75.06970601,119.42,119.36,72.76712815]
[1769387001572,0.05763099,119.4,119.36,72.76712815]
[1769387004165,0.05763099,119.4,119.36,70.48172509]
[1769387009279,0.05763099,119.4,119.34,109.67397895]
[1769387009473,77.41404006,119.4,119.34,109.67397895]
[1769387010271,77.35700907,119.39,119.34,39.19225386]
[1769387010479,2.28540306,119.38,119.34,39.19225386]
[1769387011284,0.05320694,119.37,119.34,39.19225386]
[1769387017594,70.998008,119.37,119.34,4.495e-05]
[1769387017795,2.28540306,119.36,119.3,74.7121306]
[1769387018295,70.94480106,119.36,119.3,72.42672754]
[1769387018790,0.06312375,119.34,119.3,72.42672754]
[1769387021092,76.206798,119.39,119.32,72.42672754]
[1769387021391,2.28540306,119.38,119.32,72.42672754]
[1769387021797,70.94480106,119.38,119.32,72.42672754]
[1769387022497,70.94480106,119.38,119.34,0.06197885]
[1769387022691,2.28540306,119.37,119.34,0.06197885]
[1769387025700,78.49260106,119.38,119.34,0.06197885]
[1769387026190,2.28540306,119.37,119.34,0.06197885]
[1769387026591,78.49260106,119.38,119.34,0.06197885]
[1769387027900,2.28540306,119.37,119.34,0.06197885]
[1769387029188,2.28540306,119.35,119.3,72.42672754]
[1769387029797,2.28540306,119.36,119.3,72.42672754]
[1769387029990,2.28540306,119.36,119.3,74.7121306]
[1769387029991,9.83440306,119.36,119.3,74.7121306]
[1769387030599,0.05560275,119.34,119.3,74.7121306]
[1769387030903,68.659398,119.37,119.32,0.05300378]
[1769387030904,70.94480106,119.37,119.32,0.05300378]
[1769387031095,68.659398,119.41,119.32,74.76513438]
[1769387031295,410.646198,119.4,119.32,74.76513438]
[1769387031496,412.93160106,119.4,119.32,74.7121306]
[1769387031892,412.93160106,119.4,119.32,72.42672754]
[1769387032202,68.659398,119.39,119.35,0.0546976]
[1769387033603,76.204598,119.42,119.36,74.7121306]
[1769387033805,260.2,119.43,119.37,74.7121306]